Cogmind - Beta 15 @@@ ROGUE MODE // 2025.05.17 @ 13:22:46 Player: Demo Result: Destroyed by Gamma Bomb Trap Performance ------------- Evolutions (7) 3500 Regions Visited (14) 2800 Robots Destroyed (182) 910 Value Destroyed (10963) 10963 Prototype IDs (37) 740 Alien Tech Used (2) 400 Bonus (7887) 7887 TOTAL SCORE: 27200 Bonus ------- High Alert Combat Kills 3231 Follower Combat Kills 756 Entered Garrisons 600 Used RIF Installer 2000 Entered DSFs 500 Registered with UFD 300 Met Optimus in HQ 500 Cogmind --------- Core Integrity 0/1300 Matter 224/300 Energy 198/200 System Corruption 73% Temperature Cool (-196) Movement Flying (94) Ox1 Location -3/Quarantine Parts ------- > --- POWER (2) -------- Micro Antimatter Reactor Micro Antimatter Reactor > --- PROPULSION (6) --- Improved Antigrav System Q-thruster Impulse Thruster Array Cooled Q-thruster Cooled Q-thruster > --- UTILITY (9) ------ Advanced Cryofiber Web Advanced Heat Sink Experimental Optical Array Improved Targeting Computer Advanced Target Analyzer Experimental Core Analyzer Improved Transmission Jammer Advanced Hacking Suite Improved Corruption Screen > --- WEAPON (4) ------- Sigix Broadsword Sigix Broadsword > --- INVENTORY (5) ---- Micro Antimatter Reactor Cooled Q-thruster Advanced Force Field Long-range Phase Cannon CPS Tube (2) Peak State ------------ > --- POWER ------------ Micro Antimatter Reactor Micro Antimatter Reactor > --- PROPULSION ------- Improved Antigrav System Q-thruster Impulse Thruster Array Cooled Q-thruster Cooled Q-thruster > --- UTILITY ---------- Advanced Cryofiber Web Experimental Optical Array Improved Targeting Computer Advanced Target Analyzer Experimental Core Analyzer Improved Transmission Jammer Advanced Force Field Advanced Hacking Suite Improved Corruption Screen > --- WEAPON ----------- Sigix Broadsword Sigix Broadsword > --- INVENTORY -------- Micro Antimatter Reactor Cooled Q-thruster Long-range Phase Cannon CPS Tube [Rating: 185] Favorites ----------- Power Light Quantum Reactor Engine Deuterium Engine Power Core Neutrino Core Reactor Light Quantum Reactor Propulsion Wheel Treads Improved Treads Leg Enhanced Biometal Leg Wheel Wheel Hover Unit Improved Antigrav System Flight Unit Q-thruster Utility Humpback Device Advanced Cooling System Storage Humpback Processor Rainbow Chip Hackware Advanced Hacking Suite Protection Improved Medium Armor Plating Weapon Matter Neutralizer Energy Gun Dispersion Rifle Energy Cannon Matter Neutralizer Ballistic Gun Autogun Ballistic Cannon Enhanced Hardcell Cannon Launcher Heavy Shock Bomb Launcher Special Weapon Improved Remote Datajack Impact Weapon Powered Hammer Slashing Weapon Sigix Broadsword Build | -11 -10 -10 -10 -7 -5 -5 -5 -5 -4 -4 -4 -4 -3 -3 ------- Run | Yrd Mat Min Sub Scr Fac Gar Fac Gar Fac Gar Fac DSF Res Qua Slots Evolved 14 | . . . . . 10 . . . 2 . . . 2 . Power 1 | . . . . . . . . . . . . . 1 . Propulsion 4 | . . . . . 4 . . . . . . . . . Utility 7 | . . . . . 5 . . . 2 . . . . . Weapon 2 | . . . . . 1 . . . . . . . 1 . Parts Attached 268 | 5 . 2 10 9 10 45 9 37 3 15 . 13 104 6 Power 33 | . . . . 1 . 6 . 2 . 2 . 2 19 1 Engine 3 | . . . . 1 . 2 . . . . . . . . Core 5 | . . . . . . 1 . 1 . 2 . . 1 . Reactor 25 | . . . . . . 3 . 1 . . . 2 18 1 Propulsion 79 | 2 . . 2 2 4 7 3 10 . 7 . 5 36 1 Treads 21 | 2 . . . . 1 5 1 5 . . . 3 4 . Leg 39 | . . . 1 . . 2 2 5 . 7 . 2 20 . Wheel 6 | . . . 1 2 3 . . . . . . . . . Hover 7 | . . . . . . . . . . . . . 6 1 Flight 6 | . . . . . . . . . . . . . 6 . Utility 87 | . . 1 2 . 5 19 5 15 2 5 . 6 25 2 Device 40 | . . 1 1 . 2 10 1 8 . 2 . 3 12 . Storage 8 | . . . 1 . . 2 1 1 . . . 1 2 . Processor 16 | . . . . . . 1 3 3 . 1 . 2 4 2 Hackware 4 | . . . . . . 1 . . 1 . . . 2 . Protection 19 | . . . . . 3 5 . 3 1 2 . . 5 . Artifact . | . . . . . . . . . . . . . . . Weapon 69 | 3 . 1 6 6 1 13 1 10 1 1 . . 24 2 Energy Gun 25 | 2 . . 2 1 . 1 . 4 1 1 . . 13 . Energy Cannon 10 | . . . . . 1 5 . 2 . . . . 2 . Ballistic Gun 17 | 1 . 1 2 . . 3 . 3 . . . . 7 . Ballistic Cannon 7 | . . . 1 2 . 3 . . . . . . 1 . Launcher 1 | . . . . . . . . . . . . . 1 . Special Weapon 6 | . . . 1 3 . . 1 1 . . . . . . Impact Weapon 1 | . . . . . . 1 . . . . . . . . Slashing Weapon 2 | . . . . . . . . . . . . . . 2 Piercing Weapon . | . . . . . . . . . . . . . . . Special Melee Weapon . | . . . . . . . . . . . . . . . Unidentified Prototypes 19 | . . 1 . 1 . 1 . 8 1 1 . . 4 2 Corrupted Parts 2 | . . . . . . . . . . . . . 2 . System Corruption 20 | . . . . . . . . . . . . . 20 . Parts Lost 106 | . . . 5 . . 27 1 10 . 1 . 1 60 1 Power 11 | . . . . . . 1 . 2 . . . . 8 . Propulsion 29 | . . . 2 . . 1 1 2 . . . 1 21 1 Utility 29 | . . . . . . 12 . 4 . . . . 13 . Weapon 34 | . . . 3 . . 10 . 2 . 1 . . 18 . Highest Loss Streak 24 | . . . 3 . . 22 1 5 . 1 . 1 24 1 To Critical Strikes 4 | . . . . . . 3 . . . . . . 1 . Average Backups 16 | . . 2 4 21 25 25 4 9 9 9 10 16 18 4 Power . | . . . . . . . . . 1 . 1 2 1 1 Propulsion 1 | . . . . 2 1 1 . 1 . 1 1 3 2 1 Utility 8 | . . . 2 9 12 12 2 5 6 6 7 10 11 . Weapon 3 | . . 1 1 7 2 3 . 1 . 1 1 1 . . Tool/Special . | . . . . . . . . . . . . . . . Unused Backups 96 | . . 1 2 26 . 15 3 14 4 4 1 2 21 3 Power 8 | . . . . . . 2 . 1 1 . . 1 3 . Propulsion 15 | . . . 1 6 . . . 2 . 1 . 1 2 2 Utility 46 | . . 1 1 10 . 9 3 8 . 1 . . 13 . Weapon 21 | . . . . 10 . 1 . 3 2 2 1 . 2 . Tool/Special 6 | . . . . . . 3 . . 1 . . . 1 1 Average Slot Usage (%) 71 | . 42 44 55 48 85 80 78 90 94 94 95 95 93 78 Reactor 2 | . . . . . . 1 9 5 5 2 . 3 7 9 Treads 5 | . 28 28 12 . . 4 4 9 5 5 5 6 5 . Leg 10 | . . . 7 6 . 1 9 16 20 19 20 19 18 . Wheel 9 | . . . 6 21 28 18 . . . . . . . . Device 7 | . . . . . 10 12 19 15 10 14 15 12 9 15 Storage 8 | . . . 3 14 5 4 4 7 10 10 10 10 3 . Processor 7 | . . . . . . . 12 13 20 18 20 23 19 21 Hackware 1 | . . . . . . 1 . . 4 . . . 8 4 Protection 2 | . . . . . 15 10 . 1 5 6 5 3 1 . Energy Gun 4 | . 14 14 9 1 5 . 4 4 5 5 5 5 7 . Energy Cannon 3 | . . . . . 4 6 4 8 10 10 10 10 3 . Ballistic Gun 1 | . . 1 12 . . 4 . . . . . . 3 . Ballistic Cannon 1 | . . . . 1 5 2 4 1 . . . . . . Peak Build Rating 185 | 4 3 18 13 29 61 150 149 147 145 153 153 160 179 185 Average Rating 78 | 2 3 3 6 14 57 75 143 123 143 147 153 153 155 152 On Entrance 84 | . 3 3 5 13 28 61 148 144 136 144 153 153 155 127 Naked Turns . | . . . . . . . . . . . . . . . Heaviest Build 267 | 4 2 3 208 220 245 267 91 105 63 71 61 93 122 39 Greatest Support 147 | 3 3 3 20 20 74 120 120 110 110 115 90 120 147 46 Greatest Overweight (x) 19 | 1 . . 10 19 3 6 . 1 . 1 . . 1 1 Average Overweight (x) 2 | . . . 1 9 3 2 . . . . . . . . Largest Inventory Capacity 35 | 5 5 5 35 35 35 35 10 10 10 10 10 20 20 5 Average Capacity 22 | 5 5 5 11 35 35 28 5 10 10 10 10 18 18 5 Most Carried 35 | 1 1 5 9 35 34 35 10 10 10 10 10 20 20 5 Average Carried 17 | . . 2 5 23 29 28 5 9 9 9 10 17 18 4 Final Capacity 35 | 5 5 5 35 35 35 5 10 10 10 10 10 20 5 5 Final Carried 35 | . 1 5 9 35 34 4 10 10 10 10 10 20 5 5 Class Distribution -------------------- 35% | Hauler-Mutant 27% | Scavenger-Gunner 15% | Scavenger-Tank 8% | Mutant 5% | Derelict-Tank 3% | Hauler-Tank Dominant Class ---------------- Mutant | -10/Materials Mutant | -10/Mines Mutant | -10/Subcaves Hauler-Mutant | -7/Scraptown Derelict-Tank | -5/Factory Hauler-Tank | -5/Garrison Scavenger-Gunner | -5/Factory Scavenger-Gunner | -5/Garrison Scavenger-Tank | -4/Factory Scavenger-Tank | -4/Garrison Scavenger-Tank | -4/Factory Scavenger-Gunner | -4/DSF Scavenger-Gunner | -3/Research Scavenger-Sprinter | -3/Quarantine Resources | -11 -10 -10 -10 -7 -5 -5 -5 -5 -4 -4 -4 -4 -3 -3 ----------- Run | Yrd Mat Min Sub Scr Fac Gar Fac Gar Fac Gar Fac DSF Res Qua Matter Collected 6844 | 165 . 82 150 340 . 1509 584 1214 30 285 . 135 2279 71 Remotely . | . . . . . . . . . . . . . . . Salvage Created 10176 | . . 46 84 . . 828 1416 1413 . 1083 . 501 4700 105 Parts 524 | . . 2 7 . . 43 39 65 . 50 . 20 288 10 Haulers Intercepted 1 | . . . . . . . . . . . . . 1 . Recyclers Shooed 1 | . . . . . . . . . . . . . 1 . Parts Field Recycled 58 | . . . . . . 58 . . . . . . . . Retrieved Matter 280 | . . . . . . 280 . . . . . . . . Parts Self-Destructed . | . . . . . . . . . . . . . . . Prevented . | . . . . . . . . . . . . . . . Kills | -11 -10 -10 -10 -7 -5 -5 -5 -5 -4 -4 -4 -4 -3 -3 ------- Run | Yrd Mat Min Sub Scr Fac Gar Fac Gar Fac Gar Fac DSF Res Qua Combat Hostiles Destroyed 150 | . . 3 2 . . 18 15 26 . 18 . 7 60 1 Melee 1 | . . . . . . . . . . . . . . 1 Guns 60 | . . 3 2 . . . 2 10 . 5 . . 38 . Cannons 77 | . . . . . . 17 10 15 . 12 . 6 17 . AOE 4 | . . . . . . . 1 . . . . . 3 . Classes Destroyed 21 | . . 1 1 . . 3 7 2 . 1 . 2 3 1 Worker 3 | . . . . . . . . . . . . . 3 . Builder 9 | . . . . . . . 2 . . . . . 7 . Tunneler 1 | . . . . . . . 1 . . . . . . . Hauler 1 | . . . . . . . . . . . . . 1 . Recycler 6 | . . . . . . . 5 . . . . . 1 . Mechanic 1 | . . . . . . . . . . . . . 1 . Watcher 10 | . . . . . . . 3 . . . . . 7 . Swarmer 34 | . . 3 . . . 9 . 9 . 4 . . 9 . Saboteur 2 | . . . . . . . . . . 1 . . 1 . Grunt 37 | . . . . . . 3 7 2 . 5 . . 20 . Brawler 1 | . . . . . . . 1 . . . . . . . Duelist 2 | . . . . . . . . 1 . . . . 1 . Researcher 1 | . . . . . . . . . . . . . . 1 Sentry 22 | . . . . . . 5 2 11 . 3 . . 1 . Specialist 4 | . . . . . . . . . . . . 4 . . Hunter 21 | . . . . . . . 3 2 . 4 . 2 10 . Programmer 19 | . . . . . . . 2 . . . . . 16 1 Heavy 2 | . . . . . . . . . . . . 1 1 . Behemoth 2 | . . . . . . 1 . . . . . . 1 . Executioner 2 | . . . . . . . . 1 . 1 . . . . Subdweller 2 | . . . 2 . . . . . . . . . . . Best Kill Streak 11 | . . 3 1 . . 5 10 8 . 5 . 4 11 2 Combat Bots Only 8 | . . 3 1 . . 5 6 8 . 5 . 4 7 1 Max Kills in Single Turn 5 | . . 1 1 . . 2 2 2 . 1 . 1 5 1 Gunslinging 1 | . . . . . . . . . . . . . 1 . Exploded 3 | . . . . . . . 1 . . . . . 3 . Melee 1 | . . . . . . . . . . . . . . 1 Uniques/NPCs Destroyed . | . . . . . . . . . . . . . . . Combat | -11 -10 -10 -10 -7 -5 -5 -5 -5 -4 -4 -4 -4 -3 -3 -------- Run | Yrd Mat Min Sub Scr Fac Gar Fac Gar Fac Gar Fac DSF Res Qua Hostile Shots Fired 1728 | . 9 53 23 . 10 170 132 172 2 112 . 133 900 12 Missed 554 | . 2 20 7 . 1 43 42 33 . 29 . 59 313 5 Deflected 15 | . . . . . . . 15 . . . . . . . Hits 1174 | . 7 33 16 . 9 127 90 139 2 83 . 74 587 7 Melee 7 | . . . . . . . . . . 2 . . 5 . Projectile 1167 | . 7 33 16 . 9 127 90 139 2 81 . 74 582 7 AOE 3 | . . . . . . . 2 . . . . . 1 . Critical Strikes 49 | . . . 1 . . 2 6 7 . 2 . 1 29 1 Actively Blocked 5 | . . . . . . . . . . . . . 5 . Part Disruptions 4 | . . . . . . . . . . . . . 4 . Damage Taken 22905 | . 63 272 321 . 299 3090 1532 2780 46 1333 . 850 12062 257 Core 2346 | . . 33 98 . . 543 53 102 23 86 . 96 1264 48 Absorbed by Shields 886 | . . . . . . . 10 425 . . . . 451 . Reduced by Siege Mode 93 | . . . . . . 13 . 80 . . . . . . Redirected to Shielding 157 | . . . . . 28 54 . . . . . . 75 . Ignored by Resistances 503 | . . . . . 12 174 . 30 . 223 . 64 . . Regen/Repaired (Parts) 125 | . . . . . 7 . . . . . . . . 118 Core Remaining (%) 64 | 100 . . . 47 . . . 30 . . . 82 . . Volleys Fired 588 | . . 28 21 . 5 81 40 130 2 47 . 17 216 1 Largest 4 | . . 1 2 . 3 3 3 3 3 3 . 3 4 1 Hottest 386 | . . 50 100 . 218 269 243 298 298 298 . 298 386 105 Shots Fired 1319 | . . 28 32 . 9 169 116 247 5 127 . 46 539 1 Gun 681 | . . 28 29 . 2 43 38 60 1 40 . 14 426 . Cannon 624 | . . . . . 7 125 78 180 4 87 . 32 110 1 Launcher 3 | . . . . . . . . . . . . . 3 . Special 11 | . . . 3 . . 1 . 7 . . . . . . Kinetic 379 | . . . 13 . 5 88 38 52 . . . . 183 . Thermal 796 | . . 28 19 . 4 76 78 188 5 127 . 46 224 1 Explosive . | . . . . . . . . . . . . . . . Electromagnetic 136 | . . . . . . 4 . . . . . . 132 . Robot Hit Streak 33 | . . 4 9 . 1 15 22 33 4 12 . 12 18 . Robot Miss Streak 6 | . . 2 1 . 2 6 3 3 1 3 . 1 6 . Penetration Max 2 | . . . . . . 1 . . . . . . 2 . Secondary Targets 6 | . . . . . . . . . . . . . 6 . Max Gunslinging Chain 1 | . . . . . . . . . . . . . 1 . Shots Hit Robots 731 | . . 15 24 . 2 97 62 118 4 83 . 37 285 4 Core Hits 348 | . . 3 6 . . 37 36 47 1 37 . 14 165 2 Critical Kills 30 | . . . . . . 1 3 4 . 3 . 1 18 . Critical Parts Destroyed 16 | . . . . . . . . 3 . 1 . . 12 . Critical Strikes 66 | . . 2 3 . . 3 4 7 1 5 . 4 36 1 Burn 12 | . . 2 3 . . . . . . 1 . 3 3 . Meltdown 9 | . . . . . . 1 3 2 . 1 . 1 1 . Destroy 38 | . . . . . . . . 5 1 3 . . 29 . Blast 5 | . . . . . . 2 1 . . . . . 2 . Corrupt 1 | . . . . . . . . . . . . . 1 . Sever 1 | . . . . . . . . . . . . . . 1 Melee Attacks 24 | . . . . . . 11 . . . . . . . 13 Impact 11 | . . . . . . 11 . . . . . . . . Slashing 13 | . . . . . . . . . . . . . . 13 Piercing . | . . . . . . . . . . . . . . . Sneak Attacks 1 | . . . . . . . . . . . . . . 1 Combat Hostiles . | . . . . . . . . . . . . . . . Follow-up Attacks . | . . . . . . . . . . . . . . . Damage Inflicted 23854 | . . 187 255 . . 2833 3109 3806 143 2771 . 1286 8941 523 Guns 9065 | . . 186 255 . . 446 702 817 27 785 . 313 5534 . Cannons 13182 | . . . . . . 2327 1837 2989 116 1986 . 973 2954 . Explosions 1028 | . . . . . . 60 556 . . . . . 412 . Melee 523 | . . . . . . . . . . . . . . 523 Ramming 56 | . . 1 . . . . 14 . . . . . 41 . Kinetic 5555 | . . . 98 . . 1176 778 887 . . . . 2616 . Thermal 15629 | . . 186 157 . . 1605 1862 2919 143 2771 . 1286 4700 . Explosive 455 | . . . . . . . 455 . . . . . . . Electromagnetic 1636 | . . . . . . 52 . . . . . . 1584 . Impact . | . . . . . . . . . . . . . . . Slashing 523 | . . . . . . . . . . . . . . 523 Piercing . | . . . . . . . . . . . . . . . Highest Corruption 73 | . . . . . . 1 1 5 . . . . 68 73 Average Corruption 14 | . . . . . . 1 1 4 . . . . 27 71 Corruption Purged . | . . . . . . . . . . . . . . . Corruption Blocked . | . . . . . . . . . . . . . . . Effects 216 | . . . . . . 3 7 43 . . . . 153 10 Message Errors 39 | . . . . . . . 2 8 . . . . 28 1 Matter Fused 42 | . . . . . . 1 2 11 . . . . 26 2 Heat Flow Errors 20 | . . . . . . 1 2 5 . . . . 11 1 Energy Discharges 20 | . . . . . . . . 7 . . . . 11 2 Parts Rejected 4 | . . . . . . . 1 1 . . . . 2 . Parts Fused 2 | . . . . . . . . 1 . . . . 1 . Data Loss (minor) 14 | . . . . . . . . 3 . . . . 10 1 Data Loss (major) 11 | . . . . . . 1 . 3 . . . . 7 . Misfires 6 | . . . . . . . . 3 . . . . 3 . Alerts 2 | . . . . . . . . . . . . . 2 . Misdirections 23 | . . . . . . . . . . . . . 20 3 Weapon Failures 33 | . . . . . . . . 1 . . . . 32 . Overload Shots . | . . . . . . . . . . . . . . . Overflow Damage 335 | . . . . . . 107 26 25 . 28 . 20 120 9 Projectiles 313 | . . . . . . 107 26 25 . 28 . 20 107 . Explosions 13 | . . . . . . . . . . . . . 13 . Melee 9 | . . . . . . . . . . . . . . 9 Knockbacks 16 | . . . . . . 6 7 1 . . . . 2 . Impact 1 | . . . . . . . . . . . . . 1 . Kinetic 15 | . . . . . . 6 7 1 . . . . 1 . Secondary . | . . . . . . . . . . . . . . . Self-Inflicted Damage 209 | . . . . . . 52 42 . . . . . 115 . Shots 5 | . . . . . . 1 1 . . . . . 3 . Rammed 1 | . . 1 . . . . . . . . . . . . Targets Rammed 9 | . . 1 . . . . 2 . . . . . 6 . Kicked 8 | . . . . . . . 2 . . . . . 6 . Crushed . | . . . . . . . . . . . . . . . Highest Temperature 1165 | . . . . . . 1165 282 207 18 210 . 48 432 199 Average Temperature 138 | . . . . . . 308 55 57 9 43 . 24 124 102 Received Heat Transfer 2182 | . . . . . 54 366 345 440 9 168 . 84 716 . Effects 35 | . . . . . . 31 . . . . . . 4 . Shutdowns 5 | . . . . . . 4 . . . . . . 1 . Interference 4 | . . . . . . 2 . . . . . . 2 . Matter Decay 3 | . . . . . . 3 . . . . . . . . Short Circuit 5 | . . . . . . 4 . . . . . . 1 . Damage (major) 16 | . . . . . . 16 . . . . . . . . Damage (core) 2 | . . . . . . 2 . . . . . . . . Siege Activations 4 | . . . . . . 1 . 3 . . . . . . Total Turns 89 | . . . . . . 17 . 72 . . . . . . Longest Duration 41 | . . . . . . 17 . 41 . . . . . . Martial Activations . | . . . . . . . . . . . . . . . Shielding Activations 4 | . . . . . . . 3 1 . . . . . . Total Turns 98 | . . . . . . . 95 3 . . . . . . Longest Duration 45 | . . . . . . . 45 3 . . . . . . Robots Disrupted 1 | . . . . . . 1 . . . . . . . . Combat Hostiles 1 | . . . . . . 1 . . . . . . . . Robots Corrupted 2 | . . . . . . . . . . . . . 2 . Combat Hostiles 2 | . . . . . . . . . . . . . 2 . Parts Fried 12 | . . . . . . . . . . . . . 12 . Impact Corruptions . | . . . . . . . . . . . . . . . Robots Melted 9 | . . . . . . 1 3 2 . 1 . 1 1 . Combat Hostiles 6 | . . . . . . 1 2 1 . 1 . 1 . . Parts Melted 47 | . . 3 . . . 3 7 7 . 7 . 4 16 . Heat Transferred 18862 | . . 703 618 . . 1942 1826 2932 148 3130 . 1849 5714 . Parts Sabotaged 6 | . . . . . . . . . . 6 . . . . Parts Stolen . | . . . . . . . . . . . . . . . Parts Stripped . | . . . . . . . . . . . . . . . Power Chain Reactions 3 | . . . . . . 1 . . . . . . 2 . Alert | -11 -10 -10 -10 -7 -5 -5 -5 -5 -4 -4 -4 -4 -3 -3 ------- Run | Yrd Mat Min Sub Scr Fac Gar Fac Gar Fac Gar Fac DSF Res Qua Maximum Alert Level 5 | . . . . . . 2 2 5 3 4 3 3 4 2 Low Security (%) 15 | 100 100 100 . . 100 15 21 . . . . . . . Level 1 16 | . . . . . . 49 31 . . . . . 23 . Level 2 26 | . . . . . . 34 46 15 . 5 . 89 36 100 Level 3 16 | . . . . . . . . 19 100 39 100 10 22 . Level 4 21 | . . . . . . . . 53 . 55 . . 17 . Level 5 2 | . . . . . . . . 11 . . . . . . High Security . | . . . . . . . . . . . . . . . Max Security . | . . . . . . . . . . . . . . . Peak Influence 1726 | . 30 99 . . 6 509 647 1726 974 1499 786 718 1278 681 Initial 905 | . . 11 . . . 9 266 438 905 667 786 536 403 659 Average 666 | . 7 21 . . . 313 376 1154 947 1122 775 610 662 664 Influence Increases 6388 | . 30 115 . . 31 770 681 1448 119 862 . 192 2056 84 Destroy 0b10 Robot/C 3300 | . . 60 . . . 360 300 680 60 460 . 140 1200 40 Destroy 0b10 Robot/NC 180 | . . . . . . 15 55 5 . 5 . . 100 . Destroy Leader 482 | . . 10 . . . 30 76 50 20 30 . 20 236 10 Allied During Kill 187 | . . . . . . . . 77 19 91 . . . . Successful Hack 137 | . . . . . 21 . 7 7 14 . . . 86 2 Disable Machine 345 | . . . . . . 75 90 30 . 15 . 15 90 30 Anti-Garrison Action 600 | . . . . . . 200 . 350 . 50 . . . . Destroy Structure 677 | . . . . . 10 75 138 219 6 121 . 2 104 2 Partial Spotted 15 | . . . . . . . . . . . . . 15 . Lose Combat Pursuer 465 | . 30 45 . . . 15 15 30 . 90 . 15 225 . Influence Decreases 5725 | . . 145 . . 17 275 563 349 891 317 733 240 1601 594 Entered New Map 3336 | . . 19 . . . 5 243 189 821 287 713 230 315 514 Time Decay 1299 | . . 126 . . 17 . 310 . 70 . 20 . 686 70 Lost Part 1010 | . . . . . . 270 10 100 . 10 . 10 600 10 Lost Ally 80 | . . . . . . . . 60 . 20 . . . . Squads Dispatched 29 | . . . . . 1 . 5 . . . 2 2 19 . Investigation 7 | . . . . . . . 3 . . . 2 . 2 . Extermination 8 | . . . . . . . 1 . . . . . 7 . Reinforcement 10 | . . . . . 1 . . . . . . 2 7 . Assault 4 | . . . . . . . 1 . . . . . 3 . Garrison . | . . . . . . . . . . . . . . . Intercept . | . . . . . . . . . . . . . . . Searches Triggered . | . . . . . . . . . . . . . . . Construction Impeded 2 | . . . . . . . . . . . . . 2 . Haulers Reinforced 2 | . . . . . . . . . . . . . 2 . Active Scanning Responses . | . . . . . . . . . . . . . . . Cargo Convoy Interrupts 1 | . . . . . . . . . . . . . 1 . Stealth | -11 -10 -10 -10 -7 -5 -5 -5 -5 -4 -4 -4 -4 -3 -3 --------- Run | Yrd Mat Min Sub Scr Fac Gar Fac Gar Fac Gar Fac DSF Res Qua Distress Signals 5 | . . . . . . . 2 . . . . . 3 . Communications Jammed 1 | . . . . . . . . . . . . . . 1 Distress Signals 1 | . . . . . . . . . . . . . . 1 Times Spotted 242 | . 5 6 2 . 4 18 35 32 2 32 . 8 96 2 Peak Tracking Total 11 | . 3 3 1 . 3 5 11 8 1 9 . 3 9 1 Tactical Retreats 19 | . 1 1 . . . 1 1 2 . 3 . 1 9 . Traps | -11 -10 -10 -10 -7 -5 -5 -5 -5 -4 -4 -4 -4 -3 -3 ------- Run | Yrd Mat Min Sub Scr Fac Gar Fac Gar Fac Gar Fac DSF Res Qua Traps Triggered 17 | . . . . . 1 2 . 4 . 4 . 2 3 1 Indirectly . | . . . . . . . . . . . . . . . Trap Hack Attempts . | . . . . . . . . . . . . . . . Triggered . | . . . . . . . . . . . . . . . Disarmed . | . . . . . . . . . . . . . . . Reprogrammed . | . . . . . . . . . . . . . . . Reused . | . . . . . . . . . . . . . . . Traps Extracted . | . . . . . . . . . . . . . . . Installed . | . . . . . . . . . . . . . . . Triggered . | . . . . . . . . . . . . . . . Most Traps Carried 2 | . . . . 2 2 2 . . . . . . . . Machines | -11 -10 -10 -10 -7 -5 -5 -5 -5 -4 -4 -4 -4 -3 -3 ---------- Run | Yrd Mat Min Sub Scr Fac Gar Fac Gar Fac Gar Fac DSF Res Qua Machines Disabled 38 | . . . 1 . . 8 6 10 . 4 . 1 6 2 Max in Single Turn 2 | . . . 1 . . 1 2 2 . 2 . 1 1 1 Garrison Access 2 | . . . . . . . . . . . . . 2 . Garrison Relay 4 | . . . . . . 2 . 2 . . . . . . Phase Generator 2 | . . . . . . . . 1 . 1 . . . . Machines Repaired . | . . . . . . . . . . . . . . . Machines Dismantled . | . . . . . . . . . . . . . . . Machines Sabotaged . | . . . . . . . . . . . . . . . Overloaded Fab Kills . | . . . . . . . . . . . . . . . Hacking | -11 -10 -10 -10 -7 -5 -5 -5 -5 -4 -4 -4 -4 -3 -3 --------- Run | Yrd Mat Min Sub Scr Fac Gar Fac Gar Fac Gar Fac DSF Res Qua Machines Accessed 33 | . . 1 1 3 3 1 5 3 3 . 2 . 10 1 Terminals 13 | . . . . . . 1 1 3 1 . 1 . 5 1 Fabricators 2 | . . . . . . . . . . . . . 2 . Repair Stations 2 | . . . . . 1 . . . . . . . 1 . Recycling Units 4 | . . . . . . . 3 . . . 1 . . . Scanalyzers 2 | . . . . . 1 . . . 1 . . . . . Garrison Access 5 | . . . . . 1 . 1 . 1 . . . 2 . Total Hacks 75 | . . 1 1 6 16 2 11 5 7 . 4 . 21 1 Successful 51 | . . 1 1 6 14 1 7 1 3 . 2 . 14 1 Failed 24 | . . . . . 2 1 4 4 4 . 2 . 7 . Catastrophic 3 | . . . . . . . . 1 1 . . . 1 . Database Lockouts . | . . . . . . . . . . . . . . . Manual 30 | . . . . . . 1 10 . 4 . 1 . 14 . Terminals 30 | . . . . . . 2 4 5 3 . 3 . 12 1 Fabricators 3 | . . . . . . . . . . . . . 3 . Repair Stations 5 | . . . . . 3 . . . . . . . 2 . Recycling Units 7 | . . . . . . . 6 . . . 1 . . . Scanalyzers 13 | . . . . . 11 . . . 2 . . . . . Garrison Access 9 | . . . . . 2 . 1 . 2 . . . 4 . Terminal Hacks 14 | . . 1 1 6 . 1 . 1 . . 1 . 2 1 Record 6 | . . . . 5 . . . . . . . . . 1 Open Door 2 | . . 1 . . . . . 1 . . . . . . Open DSF 2 | . . . . . . . . . . . 1 . 1 . Emergency Access Points 1 | . . . . . . 1 . . . . . . . . Registered Components 1 | . . . . . . . . . . . . . 1 . Proto ID Catalog 2 | . . . 1 1 . . . . . . . . . . Fabricator Hacks 2 | . . . . . . . . . . . . . 2 . Load Schematic 1 | . . . . . . . . . . . . . 1 . Build 1 | . . . . . . . . . . . . . 1 . Repair Station Hacks 4 | . . . . . 2 . . . . . . . 2 . Scan Component 2 | . . . . . 1 . . . . . . . 1 . Repair 2 | . . . . . 1 . . . . . . . 1 . Recycling Unit Hacks . | . . . . . . . . . . . . . . . Scanalyzer 12 | . . . . . 11 . . . 1 . . . . . Insert Component 6 | . . . . . 5 . . . 1 . . . . . Analyze 6 | . . . . . 6 . . . . . . . . . Garrison Access Hacks 5 | . . . . . 1 . 1 . 1 . . . 2 . Unlock Access 3 | . . . . . 1 . 1 . 1 . . . . . Seal Access 2 | . . . . . . . . . . . . . 2 . Unauthorized Hacks 14 | . . . . . . . 6 . 1 . 1 . 6 . Terminals 8 | . . . . . . . 3 . 1 . . . 4 . Track 1 | . . . . . . . 1 . . . . . . . Botnet 6 | . . . . . . . 1 . 1 . . . 4 . Disrupt 1 | . . . . . . . 1 . . . . . . . Fabricators . | . . . . . . . . . . . . . . . Repair Stations . | . . . . . . . . . . . . . . . Recycling Units 4 | . . . . . . . 3 . . . 1 . . . Fedlink 4 | . . . . . . . 3 . . . 1 . . . Scanalyzers . | . . . . . . . . . . . . . . . Garrison Access 2 | . . . . . . . . . . . . . 2 . Redirect 1 | . . . . . . . . . . . . . 1 . Watchers 1 | . . . . . . . . . . . . . 1 . Data Cores Recovered . | . . . . . . . . . . . . . . . Used . | . . . . . . . . . . . . . . . Hacking Detections 19 | . . . . . 3 1 2 2 3 . 1 . 7 . Full Trace Events 3 | . . . . . . . . . . . 1 . 2 . Feedback Events . | . . . . . . . . . . . . . . . Feedback Blocked . | . . . . . . . . . . . . . . . Robot Schematics Acquired . | . . . . . . . . . . . . . . . Robots Built . | . . . . . . . . . . . . . . . Authchips . | . . . . . . . . . . . . . . . Time . | . . . . . . . . . . . . . . . Total Robot Build Rating . | . . . . . . . . . . . . . . . Part Schematics Acquired 6 | . . . . . 4 . . . . . . . . 2 Parts Built 1 | . . . . . . . . . . . . . 1 . Authchips . | . . . . . . . . . . . . . . . Time 24 | . . . . . . . . . . . . . 24 . Total Part Build Rating 3 | . . . . . . . . . . . . . 3 . Parts Repaired 1 | . . . . . 1 . . . . . . . . . Time 92 | . . . . . 38 . . . . . . . 54 . Parts Recycled . | . . . . . . . . . . . . . . . Recycled Matter . | . . . . . . . . . . . . . . . Retrieved Matter . | . . . . . . . . . . . . . . . Retrieved Components . | . . . . . . . . . . . . . . . Parts Scanalyzed 5 | . . . . . 4 . . . 1 . . . . . Part Schematics Acquired 4 | . . . . . 4 . . . . . . . . . Parts Damaged 1 | . . . . . . . . . 1 . . . . . Bothacking | -11 -10 -10 -10 -7 -5 -5 -5 -5 -4 -4 -4 -4 -3 -3 ------------ Run | Yrd Mat Min Sub Scr Fac Gar Fac Gar Fac Gar Fac DSF Res Qua Used RIF Installer 4 | . . . . . . 1 . 2 . 1 . . . . Robot Detection 1 | . . . . . . . . 1 . . . . . . Structural Interface 1 | . . . . . . . . 1 . . . . . . Autoassimilate 1 | . . . . . . . . . . 1 . . . . Robots Hacked . | . . . . . . . . . . . . . . . Non-combat . | . . . . . . . . . . . . . . . Combat . | . . . . . . . . . . . . . . . Robot Hacks Applied . | . . . . . . . . . . . . . . . Relay Couplers Released 14 | . . . . . . 6 . 8 . . . . . . Machine Destruction 14 | . . . . . . 6 . 8 . . . . . . Attached 1 | . . . . . . . . . 1 . . . . . Fabnet Peak Effective % . | . . . . . . . . . . . . . . . Robots Rewired 4 | . . . . . . . . 4 . . . . . . Allies Hacked . | . . . . . . . . . . . . . . . Hacks Repelled . | . . . . . . . . . . . . . . . Allies | -11 -10 -10 -10 -7 -5 -5 -5 -5 -4 -4 -4 -4 -3 -3 -------- Run | Yrd Mat Min Sub Scr Fac Gar Fac Gar Fac Gar Fac DSF Res Qua Total Allies 7 | . . 3 . . . . . 4 . . . . . . Largest Group 3 | . . 3 3 . . . . 3 1 1 . . . . Highest-Rated Group 180 | . . 40 40 . . . . 180 119 119 . . . . Highest-Rated Ally 119 | . . 16 16 . . . . 119 119 119 . . . . Total Orders . | . . . . . . . . . . . . . . . Ally Attacks 62 | . . . 14 . . . . 27 4 17 . . . . Total Damage 2008 | . . . 61 . . . . 1241 236 470 . . . . Kills 16 | . . . . . . . . 8 3 5 . . . . Allies Corrupted . | . . . . . . . . . . . . . . . Allies Melted . | . . . . . . . . . . . . . . . Intel | -11 -10 -10 -10 -7 -5 -5 -5 -5 -4 -4 -4 -4 -3 -3 ------- Run | Yrd Mat Min Sub Scr Fac Gar Fac Gar Fac Gar Fac DSF Res Qua Active Infowar (turns) 5329 | . . . . . 302 226 . 591 158 870 59 228 2737 158 Optics 4801 | . . . . . . . . 591 158 870 59 228 2737 158 Seismic 528 | . . . . . 302 226 . . . . . . . . Jamming 112 | . . . . . . . . . . . . . 8 104 Robot Analysis Total . | . . . . . . . . . . . . . . . Derelict Logs Recovered 7 | . . 2 2 3 . . . . . . . . . . Drone Launches . | . . . . . . . . . . . . . . . Drone Recoveries . | . . . . . . . . . . . . . . . Exploration | -11 -10 -10 -10 -7 -5 -5 -5 -5 -4 -4 -4 -4 -3 -3 ------------- Run | Yrd Mat Min Sub Scr Fac Gar Fac Gar Fac Gar Fac DSF Res Qua Turns Passed 15463 | 28 36 702 644 5344 311 1448 696 2031 158 870 59 228 2750 158 Spaces Moved 8508 | 36 68 619 393 1881 205 708 360 1179 112 592 60 133 1896 266 Core 1133 | 36 68 619 326 . . 7 . . . . . . 77 . Treads 11 | . . . . . . 8 . 1 . . . . 2 . Legs 4008 | . . . . 98 . 135 360 1178 112 592 60 133 1340 . Wheels 2613 | . . . 67 1783 205 558 . . . . . . . . Hover 9 | . . . . . . . . . . . . . 9 . Flight 734 | . . . . . . . . . . . . . 468 266 Fastest Speed 17 | 50 50 50 50 200 133 50 126 110 110 100 100 97 17 25 Average Speed 139 | 52 50 50 79 279 133 136 136 121 110 106 100 101 91 32 Slowest Speed 1450 | 100 50 50 210 1450 133 176 140 200 110 190 100 105 250 94 Overloaded Moves 46 | . . . . . . . . . . . . . 46 . Propulsion Burnouts . | . . . . . . . . . . . . . . . Robots Hopped 10 | . . . . . . . . . . . . . 7 3 Potential Cave-ins 7 | . . . . . 2 . 5 . . . . . . . Cave-ins Triggered 3 | . . . . . . 1 . 1 . . . . 1 . Exploration Rate (%) 40 | 4 19 97 25 89 7 46 11 97 4 56 1 84 40 21 Regions Visited 14 Branch Regions 4 Pre-discovered Areas 2 | . . . 1 . . . 1 . . . . . . . Known Exits Taken 4 | . . . . . 1 . 1 . 1 . 1 . . . Unknown Exits Taken 6 | 1 1 1 1 1 . . . . . . . . 1 . Scrap Searched 13 | . . 1 3 9 . . . . . . . . . . Spaces Dug 70 | . . . . . 3 5 14 33 . . . . 14 1 Terrain Destroyed 314 | . . . . . 7 18 73 72 . 86 . 1 56 1 Melee 5 | . . . . . . 4 . . . . . . . 1 Projectile 170 | . . . . . 7 5 30 65 . 15 . 1 47 . AOE 138 | . . . . . . 9 43 7 . 71 . . 8 . Terrain Rammed . | . . . . . . . . . . . . . . . Walls Destroyed . | . . . . . . . . . . . . . . . Machines Disabled . | . . . . . . . . . . . . . . . Actions | -11 -10 -10 -10 -7 -5 -5 -5 -5 -4 -4 -4 -4 -3 -3 --------- Run | Yrd Mat Min Sub Scr Fac Gar Fac Gar Fac Gar Fac DSF Res Qua Total 11027 | 43 69 982 691 1984 234 1043 474 1589 146 738 61 194 2471 308 Wait 947 | . 1 327 244 . . 72 45 113 14 37 . . 87 7 Move 8478 | 35 67 618 392 1880 205 707 360 1178 112 591 59 132 1882 260 Hop 9 | . . . . . . . . . . . . . 6 3 Pick Up 240 | 1 1 4 9 55 10 26 9 29 7 11 1 14 61 2 Fast Attach 183 | 4 . 1 11 6 . 30 8 35 2 10 . 9 59 8 Attach 82 | 1 . 1 2 . 10 12 1 8 2 3 . . 39 3 Detach 25 | . . 1 1 4 1 6 1 4 . . . . 4 3 Swap 115 | . . . 1 3 3 40 2 16 . 14 . 5 30 1 Drop 305 | 2 . 1 10 36 . 58 6 60 7 24 1 15 78 7 Fire 588 | . . 28 21 . 5 81 40 130 2 47 . 17 216 1 Melee 24 | . . . . . . 11 . . . . . . . 13 Ram 1 | . . . . . . . . . . . . . 1 . Kick 8 | . . . . . . . 2 . . . . . 6 . Crush 1 | . . 1 . . . . . . . . . . . . Escape Stasis 12 | . . . . . . . . 7 . 1 . 2 2 . Rewire 9 | . . . . . . . . 9 . . . . . . Trap . | . . . . . . . . . . . . . . . Miscellaneous . | . . . . . . . . . . . . . . . Route ------- -11/Scrapyard -10/Materials -10/Mines (discovered 3 exits: [*Mat x2] / *Sub) -10/Subcaves -7/Scraptown (discovered 2 exits: *Fac x2) -5/Factory (discovered 2 exits: Upp / Gar) -5/Garrison -5/Factory -5/Garrison (discovered 3 exits: *Fac x3) -4/Factory -4/Garrison -4/Factory -4/DSF -3/Research -3/Quarantine History --------- Turn | Location | Event 8 | -11/Scrapyard | Discovered new exit (range 16) 29 | -11/Scrapyard | Entered Materials 52 | -10/Materials | Discovered new exit (range 16) 65 | -10/Materials | Entered Mines 75 | -10/Mines | Discovered new exit (range 5) 130 | -10/Mines | Learned Materials interactive machine intel 308 | -10/Mines | Build established: Mutant 559 | -10/Mines | Assisted by bots powering up and referring to "LRC-V3" 671 | -10/Mines | Discovered new exit (range 5) 676 | -10/Mines | Found the Drone Emporium 677 | -10/Mines | Found Prototype Device 677 | -10/Mines | Identified Decoy Drone Bay 750 | -10/Mines | Discovered new exit (range 6) 767 | -10/Mines | Entered Subcaves 767 | -10/Subcaves | Accompanied by 3 allies 768 | -10/Subcaves | Approached by a straggling Scientist 770 | -10/Subcaves | Learned Materials terminal intel 1072 | -10/Subcaves | Lost 3 allies 1094 | -10/Subcaves | Lost 3 parts (2n1w) 1112 | -10/Subcaves | Core integrity fell below 50% 1177 | -10/Subcaves | Scientist uncovered a shortcut to Scraptown 1246 | -10/Subcaves | Visited 4L-MR0's lab 1260 | -10/Subcaves | Found Rainbow Chip 1411 | -10/Subcaves | Entered Scraptown 1553 | -7/Scraptown | Build established: Hauler-Mutant 1559 | -7/Scraptown | Visited UFD Registry 1559 | -7/Scraptown | Registered with UFD as "Nanosink" 1587 | -7/Scraptown | Visited The Evicted 2598 | -7/Scraptown | Discovered new exit (range 13) 3367 | -7/Scraptown | Visited Bundlers 4709 | -7/Scraptown | Visited Symbiants 4840 | -7/Scraptown | Scanned Subdweller tech in exchange for log data 4844 | -7/Scraptown | Learned Research terminal intel 4847 | -7/Scraptown | Learned location of 1 exit from Factory 4849 | -7/Scraptown | Learned Research interactive machine intel 5421 | -7/Scraptown | Visited Junk Cannon Lab 5460 | -7/Scraptown | Found Prototype Special Weapon 5460 | -7/Scraptown | Identified Junk Cannon 5499 | -7/Scraptown | Visited Curators Association 5574 | -7/Scraptown | Visited Abandonware Association 5602 | -7/Scraptown | Learned abandonware demo "OVRCLOCK.EXE" 5606 | -7/Scraptown | Learned abandonware demo "REVENGE.EXE" 5912 | -7/Scraptown | Visited Observation Area 5981 | -7/Scraptown | Visited Derelict Rescue Squad 6000 | -7/Scraptown | Found DRS Beacon 6061 | -7/Scraptown | Visited Science Guys 6149 | -7/Scraptown | Visited Junk Repository 6229 | -7/Scraptown | Visited DA-N13 Charitable Foundation 6239 | -7/Scraptown | Found DCF Scrap (26 items) 6387 | -7/Scraptown | Visited LU-1G1's Boring Crew 6600 | -7/Scraptown | Met Optimus 6600 | -7/Scraptown | Accepted into 0bPrime 6745 | -7/Scraptown | Discovered new exit (range 5) 6755 | -7/Scraptown | Entered Factory 6755 | -5/Factory | Evolved 10 slots: Propulsion x4, Utility x5, Weapon x1 6756 | -5/Factory | Identified exit to Upper Caves 6920 | -5/Factory | Repaired Hacking Suite? 7060 | -5/Factory | Build established: Derelict-Tank 7066 | -5/Factory | Identified exit to Garrison 7066 | -5/Factory | Entered Garrison 7370 | -5/Garrison | Installed Relay Interface Framework 7386 | -5/Garrison | Garrison Relay disabled 7720 | -5/Garrison | Spotted B-75 Beast 7770 | -5/Garrison | Destroyed B-75 Beast 7902 | -5/Garrison | Triggered checkpoint 8046 | -5/Garrison | Crushed by falling debris 8068 | -5/Garrison | Build established: Hauler-Tank 8095 | -5/Garrison | Lost 3 parts (3u) 8248 | -5/Garrison | Core integrity fell below 50% 8255 | -5/Garrison | Lost 22 parts (1p9u9w) 8363 | -5/Garrison | Attached Rainbow Chip, gained temporary slots: Power, Propulsion, Utility, Weapon 8436 | -5/Garrison | Garrison Relay disabled 8464 | -5/Garrison | Triggered checkpoint 8485 | -5/Garrison | Discovered new exit (range 8) 8514 | -5/Garrison | Entered Factory 8561 | -5/Factory | Build established: Scavenger-Tank 8721 | -5/Factory | Loaded intel: 8 recycling unit locations 8789 | -5/Factory | Learned location of Protoforge (-3) 8925 | -5/Factory | Build established: Scavenger-Gunner 9114 | -5/Factory | First assault squad dispatched 9210 | -5/Factory | Identified exit to Garrison 9210 | -5/Factory | Entered Garrison 9248 | -5/Garrison | Spotted B-86 Titan 9252 | -5/Garrison | Rewired B-86 Titan 9265 | -5/Garrison | Allies destroyed B-86 Titan 9321 | -5/Garrison | Found Hvy. Reflective Plating 9484 | -5/Garrison | Triggered checkpoint 9521 | -5/Garrison | Garrison Relay disabled 9548 | -5/Garrison | Build established: Scavenger-Tank 9628 | -5/Garrison | Triggered checkpoint 9669 | -5/Garrison | Crushed by falling debris 9708 | -5/Garrison | Triggered checkpoint 9759 | -5/Garrison | Destroyed 8 combat bots 9864 | -5/Garrison | Discovered new exit (range 10) 10026 | -5/Garrison | Triggered checkpoint 10026 | -5/Garrison | Lost 5 parts (1p1n2u1w) 10221 | -5/Garrison | Expanded RIF knowledge: Structural Interface 10402 | -5/Garrison | Triggered checkpoint 10411 | -5/Garrison | Build established: Scavenger-Gunner 10417 | -5/Garrison | Expanded RIF knowledge: Robot Detection 10427 | -5/Garrison | Garrison Relay disabled 10428 | -5/Garrison | Triggered checkpoint 10493 | -5/Garrison | Discovered new exit (range 10) 10550 | -5/Garrison | Destroyed Executioner 10555 | -5/Garrison | Found Prototype Device 10555 | -5/Garrison | Identified Adv. Kinecellerator 10619 | -5/Garrison | Found Prototype Processor 10619 | -5/Garrison | Identified Exp. Core Analyzer 10623 | -5/Garrison | Found Prototype Processor 10623 | -5/Garrison | Identified Exp. Targeting Computer 10642 | -5/Garrison | Rewired Executioner 10653 | -5/Garrison | Found Exp. Core Analyzer 10746 | -5/Garrison | Triggered checkpoint 10790 | -5/Garrison | Discovered new exit (range 15) 11035 | -5/Garrison | Phase Generator disabled 11176 | -5/Garrison | Triggered checkpoint 11241 | -5/Garrison | Entered Factory 11241 | -4/Factory | Accompanied by 1 ally 11241 | -4/Factory | Evolved 2 slots: Utility x2 11399 | -4/Factory | Identified exit to Garrison 11399 | -4/Factory | Entered Garrison 11399 | -4/Garrison | Accompanied by 1 ally 11545 | -4/Garrison | Build established: Scavenger-Tank 11626 | -4/Garrison | Spotted Executioner 11636 | -4/Garrison | Destroyed Executioner 11757 | -4/Garrison | Triggered checkpoint 11787 | -4/Garrison | Triggered checkpoint 11909 | -4/Garrison | Expanded RIF knowledge: Autoassimilate 11949 | -4/Garrison | Phase Generator disabled 12060 | -4/Garrison | Found Exp. Core Analyzer 12070 | -4/Garrison | Discovered new exit (range 12) 12127 | -4/Garrison | Triggered checkpoint 12269 | -4/Garrison | Entered Factory 12302 | -4/Factory | Loaded intel: 8 recycling unit locations 12328 | -4/Factory | Identified exit to DSF 12328 | -4/Factory | Entered DSF 12354 | -4/DSF | Discovered new exit (range 22) 12409 | -4/DSF | Additional patrols routed to DSF 12556 | -4/DSF | Entered Research 12556 | -3/Research | Evolved 2 slots: Power x1, Weapon x1 12557 | -3/Research | Loaded intel: 45 interactive machine locations 12558 | -3/Research | Loaded intel: 23 terminal locations 12723 | -3/Research | Build established: Scavenger-Gunner 12725 | -3/Research | Spotted B-86 Titan 12735 | -3/Research | Destroyed B-86 Titan 12810 | -3/Research | Fabricated CPS Tube (x1) 13216 | -3/Research | System corruption reached 10% 13243 | -3/Research | Lost 3 parts (3w) 13584 | -3/Research | Crushed by falling debris 13615 | -3/Research | Lost 15 parts (4p4n2u5w) 13806 | -3/Research | First assault squad dispatched 14071 | -3/Research | Core integrity fell below 50% 14470 | -3/Research | System corruption reached 30% 14873 | -3/Research | Lost 3 parts (1n1u1w) 14876 | -3/Research | Destroyed 7 combat bots 15062 | -3/Research | Core integrity fell below 20% 15091 | -3/Research | Cargo convoy interrupted 15124 | -3/Research | Lost 24 parts (2p11n5u6w) 15302 | -3/Research | Discovered new exit (range 20) 15306 | -3/Research | Entered Quarantine 15326 | -3/Quarantine | Found Alien Slashing Weapon 15326 | -3/Quarantine | Identified Sigix Broadsword 15420 | -3/Quarantine | Found Alien Artifact 15423 | -3/Quarantine | Identified Subatomic Replicator 15423 | -3/Quarantine | Used Subatomic Replicator to replicate Sigix Broadsword 15464 | -3/Quarantine | Destroyed by Gamma Bomb Trap Last Messages --------------- 15423_ Replicated Sigix Broadsword. 15425_ Acquired Sigix Broadsword. 15428_ Acquired Adv. Force Field. 15430_ Dropped Adv. Force Field. 15431_ System corrupted: Energy discharge (-48). 15431_ Acquired Adv. Heat Sink. 15434_ Acquired Adv. Force Field. 15437_ W-44 Eye distress signal jammed. 15437_ K-01 Serf collects debris. 15447_ System corrupted: Energy discharge (-68). 15447_ K-01 Serf cleans the Research Terminal. 15454_ K-01 Serf collects debris. 15462_ System corrupted: Component data lost. 15464_ Triggered Gamma Bomb Trap. 15464_ A bubble of electromagnetic force engulfs the area. 15464_ Gamma Bomb Trap short circuited. 15464_ A bubble of electromagnetic force engulfs the area. Map ----- +----------------------------------------------------+ | ?????????????????????????????????????????????????? | | ?????????????????????????????????????????????????? | | ?????????????????????????????????????????????????? | | ?????????????????????????????????????????????????? | | ?????????????????????????????????????????????????? | | ?????????????????????????????????????????????????? | | ?????????????????????????????????????????????????? | | ?????????????????????????????????????????????????? | | ?????????????????????????????????????????????????? | | ?????????????????????????????????????????????????? | | ?????????????????????????????????????????????????? | | ?????????????????????????????????????????????????? | | ?????????????????????????????????????????????????? | | ?????????????????????????????????????????????????? | | ?????????????????????????????????????????????????? | | ?????????????????????###?????????????????????????? | | ?????????????????????# ?????????????????????????? | | ?????????????????????# ????????????????????????? | | ??????????????????????! ????????????????????????? | | ?????????????????????? ???###########??????????? | | ??????????????????????? ???# #??????????? | | ??????????????????????? ???# #??????????? | | ??????????# #T"#######;#### """"" #??????????? | | ??????????# ^ # " """ #??????????? | | ??????????# ^ ; "" " #??????????? | | ??????????# w @ # " ###### ????? | | ??????????################ # "" # ?????? | | ?????????????????????????## # # ?????? | | ??????????????????????#####;########### ?????? | | ??????????????????????# # ?????? | | ??????????????????????# # #?????? | | ??????????????????????# # #?????? | | ??????????????????????# """ # #?????? | | ??????????????????????# """ """ # #?????? | | ??????????????????????# "" k # #?????? | | ??????????????????????# " " T # #?????? | | ??????????????????????# " # #?????? | | ??????????????????????# # #?????? | | ??????????????????????# # #?????? | | ??????????????????????############+#### #?????? | | ???????????????????????????????# #?????? | | ???????????????????????????????# #?????? | | ???????????????????????????????# """ #?????? | | ???????????????????????????????# " " #?????? | | ???????????????????????????????# """ ##?????? | | ???????????????????????????????# #??????? | | ????????????????????#########??# ######## | | ????????????????????#!!"""!!#??# | | ????????????????????#!"" ""!#??# | | ????????????????????#""! ""#??# | +----------------------------------------------------+ Best States ------------- Heat Dissipation 163 Energy Generation 47 Energy Capacity 630 Matter Stores 487 Matter Capacity 550 Sight Range 23 Terrain Scan Density 10 Jamming Range 14 Base Temperature (-) 200 EM Shielding 2 Corruption Block 12 Armor Coverage 1650 Resistance: TH 30 Resistance: EX 50 Core Shielding 30 Utility Shielding 66 Evasion (%) 70 Targeting Accuracy 16 Target Analysis 8 Core Analysis 12 Recoil Reduction 4 Offensive Hacking 28 Relay Coupler Types 1 Relay Coupler Value 42 Authchip Count 3 Item Schematics ----------------- Arm. Huge Wheel | -5/Factory | Scanalyzed Stasis Canceller | -5/Factory | Scanalyzed Hacking Suite | -5/Factory | Scanalyzed CPS Tube | -5/Factory | Scanalyzed Adv. Gravity Neutralizer | -3/Quarantine | Archive Adv. Myomer Leg | -3/Quarantine | Archive Robot Schematics ------------------ None Fabricated ------------ CPS Tube | x1 | -3/Research Repaired ---------- Hacking Suite | 30% | -5/Factory Alien Tech Used ----------------- Sigix Broadsword Subatomic Replicator Achievements -------------- None Challenges ------------ None Game ------ Seed ShadingRagnarokInsulator Manual? 0 Play Time 02:45:31 Cumulative 173.8 hours Start 2025.05.17 @ 10:24:59 End 2025.05.17 @ 13:22:46 Sessions 1 Manual Loads 0 Difficulty Rogue Special Mode None Game No. 196 Rogue 196 Adventurer 0 Explorer 0 Win Type - Total 1 Types 1/0/0/0/0/0/0/0/0/0 Lore% 69 Gallery% 69 Achievement% 61 Wizard Run 0 Options --------- Layout 1 ASCII 0 Keyboard 0 Movement Numpad Keybinds 0 Fullscreen 1 Font 24/Smallcaps Map View 50x35 Zoom Use 0% Tactical HUD 1 Map Filters NONE Filters NONE Steam 1 RUN: 6f45d857-e438-4721-b82d-9e94a19bce30